Workbook

Sheet Dateneingabe
A1: 5 | C1: Gemeindename
B2: Rechnungsabschluss | E2: Budget | F2: MHP
A3: VHH | B3: Ende 2020 | C3: Ende 2021 | D3: Ende 2022 | E3: Ende 2023 | F3: Ende 2024 | G3: Ende 2025 | H3: Ende 2026 | I3: Ende 2027
A5: A.II Anlagevermögen | B5: 10 | C5: 11 | D5: 12 | E5: =D5-E18-E20 -> 14 | F5: =E5-F18-F20 -> 15 | G5: 14 | H5: 13 | I5: 12
A6: sonstige | B6: =B8-B7-B5 -> 1 | C6: =C8-C7-C5 -> 0 | D6: =D8-D7-D5 -> 0 | E6: 0 | F6: 1 | G6: 3 | H6: 3 | I6: 3
A7: B.III Geld | B7: 1 | C7: 2 | D7: 3 | E7: =D7+E22 -> 4 | F7: =E7+F22 -> 3 | G7: 1 | H7: 2 | I7: 2
A8: Summe Aktiva | B8: =B12 -> 12 | C8: =C12 -> 13 | D8: =D12 -> 15 | E8: =E12 -> 18 | F8: 19 | G8: 18 | H8: 18 | I8: =I12 -> 17
A10: C+D Nettovermögen (EK) | B10: 7 | C10: 8 | D10: 9 | E10: =D10+E17 -> 9 | F10: =E10+F17 -> 8 | G10: 6 | H10: 7 | I10: 7
A11: E+F Fremdkapital | B11: 5 | C11: 5 | D11: 6 | E11: =D11+E21 -> 9 | F11: =E11+F21 -> 11 | G11: 12 | H11: 11 | I11: 10
A12: Summe Passiva | B12: =SUM(B10:B11) -> 12 | C12: =SUM(C10:C11) -> 13 | D12: =SUM(D10:D11) -> 15 | E12: =SUM(E10:E11) -> 18 | F12: =SUM(F10:F11) -> 19 | G12: =SUM(G10:G11) -> 18 | H12: 18 | I12: =SUM(I10:I11) -> 17
E14: Budget | F14: MFP
B15: 2020 | C15: 2021 | D15: 2022 | E15: 2023 | F15: 2024 | G15: 2025 | H15: 2026 | I15: 2027
A16: aus dem EHH:
A17: SA0 | B17: 2 | C17: 2 | D17: 1 | E17: 0 | F17: -1 | G17: -2 | H17: 1 | I17: 0
A18: MVAG 2226 Afa | E18: 1 | F18: 1 | G18: 1 | H18: 1 | I18: 1
A19: aus dem FHH:
A20: SA2 (investiver HH) | E20: -3 | F20: -2 | G20: 0 | H20: 0 | I20: 0
A21: SA4 (Finanzierungstätigkeit) | E21: 3 | F21: 2 | G21: 1 | H21: -1 | I21: -1
A22: SA5 (Eigene ZMB Veränd) | E22: 1 | F22: -1 | G22: -2 | H22: 1 | I22: 0
A23: alte VRV:
A24: Querschnitt Saldo1 | B24: 0
A25: Querschnitt Saldo 2 | B25: 0
A26: Quscherschnitt Saldo 4 | B26: 0
A27: Schuldennachweis Schuldenstand Jahresende
A29: EK Quote | B29: =B10/B12 -> 0.5833333333 | C29: =C10/C12 -> 0.6153846154 | D29: 0.6 | E29: 0.5 | F29: 0.4210526316 | G29: 0.3333333333 | H29: 0.3888888889 | I29: =I10/I12 -> 0.4117647059
A30: FK Quote | B30: =B11/B12 -> 0.4166666667 | C30: =C11/C12 -> 0.3846153846 | D30: 0.4 | E30: 0.5 | F30: 0.5789473684 | G30: 0.6666666667 | H30: =H11/H12 -> 0.6111111111 | I30: 0.5882352941
B31: 2 | C31: 3 | D31: 4 | E31: 5 | F31: 6 | G31: 7 | H31: 8 | I31: 9
A32: Felder mit dieser Farbe mit Zahlen befüllen! | C32: Gew. Jahr | D32: =Kennzahlen!A1 -> 5
B35: Aktiva | C35: Passiva
B36: =SUM(IF(Dateneingabe!$B$31:$I$31=Dateneingabe!$D$32,Dateneingabe!B7:I7,0)) -> 4 | C36: =SUM(IF(Dateneingabe!$B$31:$I$31=Dateneingabe!$D$32,Dateneingabe!B11:I11,0)) -> 9
B37: =SUM(IF(Dateneingabe!$B$31:$I$31=Dateneingabe!$D$32,Dateneingabe!B6:I6,0)) -> 0 | C37: =SUM(IF(Dateneingabe!$B$31:$I$31=Dateneingabe!$D$32,Dateneingabe!B10:I10,0)) -> 9
B38: =SUM(IF(Dateneingabe!$B$31:$I$31=Dateneingabe!$D$32,Dateneingabe!B5:I5,0)) -> 14
B39: =SUM(IF(Dateneingabe!$B$31:$I$31=Dateneingabe!$D$32,Dateneingabe!B17:I17,0)) -> 0
B40: =SUM(IF(Dateneingabe!$B$31:$I$31=Dateneingabe!$D$32,Dateneingabe!B15:I15,0)) -> 2023
B41: =SUM(IF(Dateneingabe!$B$31:$I$31=Dateneingabe!$D$32,Dateneingabe!B29:I29,0)) -> 0.5
B42: =SUM(IF(Dateneingabe!$B$31:$I$31=Dateneingabe!$D$32,Dateneingabe!B30:I30,0)) -> 0.5

Sheet Kennzahlen
A1: 5 | C1: =Dateneingabe!C1 -> Gemeindename
A3: Jahr | B3: =Dateneingabe!B40 -> 2023
A4: Nachhaltigkeitspotential SA0 | B4: =Dateneingabe!B39 -> 0
A5: 8-Jahresmittel SA0 | B5: =SUM(Dateneingabe!B17:I17)/8 -> 0.375
A6: Abweichung | B6: =B4-B5 -> -0.375
A8: Nettoverm-Qu% | B8: =Dateneingabe!B41 -> 0.5
A9: Fremdk-Qu% | B9: =Dateneingabe!B42 -> 0.5
A11: Anlagevermögen | B11: =Dateneingabe!B38 -> 14
A12: Fremdkapital | B12: =Dateneingabe!C36 -> 9
B14: er
